Cogmind - Beta 13 X1 @@@ ROGUE MODE // 2023.06.21 @ 23:03:51 Player: Cracklepappy Result: Destroyed by NM-O0F(R) with Subdweller Laser Performance ------------- Evolutions (0) 0 Regions Visited (2) 400 Robots Destroyed (26) 130 Value Destroyed (588) 588 Prototype IDs (2) 40 Alien Tech Used (0) 0 Bonus (0) 0 TOTAL SCORE: 1158 Bonus ------- None Cogmind --------- Core Integrity 0/250 Matter 271/300 Energy 100/100 System Corruption 3% Temperature Cool (12) Movement Treading (720) Ox7 Location -10/Subcaves Parts ------- > --- POWER (1) -------- (None) > --- PROPULSION (2) --- Light Treads > --- UTILITY (2) ------ Cargo Storage Unit > --- WEAPON (2) ------- Assault Rifle Assault Rifle > --- INVENTORY (30) --- Ion Engine Ion Engine Light Nuclear Core Light Treads Light Treads Light Treads Light Treads Light Treads Aluminum Leg Aluminum Leg Aluminum Leg Compact Wheel Improved Heat Sink Small Storage Unit Medium Storage Unit Large Storage Unit Cargo Storage Unit Medium Battery (150) Large Matter Pod (150) High-capacity Matter Pod (47) Signal Interpreter Improved Terrain Scanner Targeting Computer Core Shielding Light Armor Plating EM Pulse Gun Grenade Launcher Hammer Peak State ------------ > --- POWER ------------ Ion Engine > --- PROPULSION ------- Light Treads Light Treads > --- UTILITY ---------- Cargo Storage Unit > --- WEAPON ----------- Medium Laser Particle Gun > --- INVENTORY -------- Ion Engine Ion Engine Light Nuclear Core Light Treads Light Treads Light Treads Light Treads Light Treads Light Treads Light Treads Aluminum Leg Aluminum Leg Aluminum Leg Improved Heat Sink Small Storage Unit Medium Storage Unit Large Storage Unit Cargo Storage Unit Medium Battery Large Matter Pod Signal Interpreter Improved Terrain Scanner Light Armor Plating EM Pulse Gun Grenade Launcher Hammer [Rating: 11] Favorites ----------- Power Ion Engine Engine Ion Engine Propulsion Light Treads Treads Light Treads Wheel Wheel Utility Cargo Storage Unit Device Improved Terrain Scanner Storage Cargo Storage Unit Weapon Medium Laser Energy Gun Medium Laser Ballistic Gun Light Assault Rifle Build | -11 -10 -10 ------- Run | Jun Mat Sub Slots Evolved . | . . . Power . | . . . Propulsion . | . . . Utility . | . . . Weapon . | . . . Parts Attached 23 | 7 16 . Power 1 | 1 . . Engine 1 | 1 . . Core . | . . . Reactor . | . . . Propulsion 11 | 2 9 . Treads 8 | 1 7 . Leg . | . . . Wheel 3 | 1 2 . Hover . | . . . Flight . | . . . Utility 3 | 2 1 . Device 1 | 1 . . Storage 2 | 1 1 . Processor . | . . . Hackware . | . . . Protection . | . . . Artifact . | . . . Weapon 8 | 2 6 . Energy Gun 5 | 2 3 . Energy Cannon . | . . . Ballistic Gun 3 | . 3 . Ballistic Cannon . | . . . Launcher . | . . . Special Weapon . | . . . Impact Weapon . | . . . Slashing Weapon . | . . . Piercing Weapon . | . . . Special Melee Weapon . | . . . Unidentified Prototypes . | . . . Parts Lost 8 | . 7 1 Power 1 | . 1 . Propulsion 4 | . 3 1 Utility . | . . . Weapon 3 | . 3 . Highest Loss Streak 3 | . 3 1 To Critical Strikes . | . . . Average Slot Usage (%) 84 | . 84 71 Engine 12 | . 12 . Treads 21 | . 21 28 Wheel 6 | . 6 . Storage 13 | . 13 14 Energy Gun 17 | . 17 . Ballistic Gun 10 | . 10 28 Naked Turns . | . . . Heaviest Build 149 | 14 149 144 Greatest Support 40 | 20 40 40 Greatest Overweight (x) 14 | 1 14 3 Average Overweight (x) 7 | . 7 3 Largest Inventory Capacity 30 | 8 30 30 Average Capacity 27 | 7 28 30 Most Carried 30 | 8 30 29 Average Carried 24 | 5 24 29 Final Capacity 30 | 8 30 30 Final Carried 29 | 8 29 29 Class Distribution -------------------- 90% | Hauler-Mutant 9% | Mutant Dominant Class ---------------- Hauler-Mutant | -10/Materials Hauler-Mutant | -10/Subcaves Resources | -11 -10 -10 ----------- Run | Jun Mat Sub Matter Collected 631 | 270 361 . Remotely . | . . . Salvage Created 856 | 101 755 . Parts 51 | 4 47 . Haulers Intercepted 2 | . 2 . Recyclers Shooed 3 | 1 2 . Parts Field Recycled . | . . . Retrieved Matter . | . . . Parts Self-Destructed . | . . . Prevented . | . . . Kills | -11 -10 -10 ------- Run | Jun Mat Sub Combat Hostiles Destroyed 20 | . 20 . Melee 2 | . 2 . Guns 18 | . 18 . Classes Destroyed 6 | 2 4 . Tunneler 1 | 1 . . Hauler 2 | . 2 . Recycler 2 | 1 1 . Watcher 1 | . 1 . Swarmer 6 | . 6 . Grunt 14 | . 14 . Best Kill Streak 3 | 2 3 . Combat Bots Only 3 | . 3 . Max Kills in Single Turn 1 | 1 1 . Gunslinging . | . . . Exploded . | . . . Melee 1 | . 1 . Uniques/NPCs Destroyed . | . . . Combat | -11 -10 -10 -------- Run | Jun Mat Sub Damage Taken 1477 | . 1376 101 Core 262 | . 241 21 Absorbed by Shields . | . . . Core Remaining (%) 100 | 100 . . Volleys Fired 94 | 4 89 1 Largest 2 | 2 2 2 Hottest 115 | 90 115 40 Shots Fired 184 | 8 174 2 Gun 184 | 8 174 2 Cannon . | . . . Launcher . | . . . Special . | . . . Kinetic 60 | . 58 2 Thermal 124 | 8 116 . Explosive . | . . . Electromagnetic . | . . . Robot Hit Streak 9 | 3 9 1 Robot Miss Streak 5 | 2 5 3 Penetration Max . | . . . Secondary Targets 2 | . 2 . Max Gunslinging Chain 1 | . 1 . Shots Hit Robots 107 | 5 101 1 Core Hits 42 | 3 39 . Critical Kills . | . . . Critical Parts Destroyed . | . . . Critical Strikes 3 | 1 2 . Burn 3 | 1 2 . Melee Attacks . | . . . Impact . | . . . Slashing . | . . . Piercing . | . . . Sneak Attacks . | . . . Combat Hostiles . | . . . Follow-up Attacks . | . . . Damage Inflicted 1309 | 61 1236 12 Guns 1247 | 61 1174 12 Cannons . | . . . Explosions . | . . . Melee . | . . . Ramming 62 | . 62 . Kinetic 280 | . 268 12 Thermal 967 | 61 906 . Explosive . | . . . Electromagnetic . | . . . Impact . | . . . Slashing . | . . . Piercing . | . . . Highest Corruption 3 | . 3 3 Average Corruption 1 | . 1 3 Corruption Purged . | . . . Corruption Blocked . | . . . Effects 26 | . 25 1 Message Errors 7 | . 6 1 Matter Fused 8 | . 8 . Heat Flow Errors 3 | . 3 . Energy Discharges 4 | . 4 . Data Loss (minor) 2 | . 2 . Misfires 2 | . 2 . Overload Shots . | . . . Overflow Damage . | . . . Projectiles . | . . . Explosions . | . . . Melee . | . . . Knockbacks . | . . . Impact . | . . . Kinetic . | . . . Secondary . | . . . Self-Inflicted Damage 1 | . 1 . Shots . | . . . Rammed 15 | . 15 . Targets Rammed 17 | . 17 . Kicked . | . . . Crushed 2 | . 2 . Highest Temperature 389 | 90 389 . Average Temperature 101 | 40 103 . Received Heat Transfer 645 | . 615 30 Effects 4 | . 4 . Shutdowns 1 | . 1 . Interference 1 | . 1 . Short Circuit 1 | . 1 . Damage (minor) 1 | . 1 . Siege Activations . | . . . Robots Corrupted . | . . . Combat Hostiles . | . . . Parts Fried . | . . . Impact Corruptions . | . . . Robots Melted . | . . . Combat Hostiles . | . . . Parts Melted 2 | . 2 . Heat Transferred 2830 | 235 2595 . Parts Sabotaged . | . . . Parts Stolen . | . . . Parts Stripped . | . . . Power Chain Reactions . | . . . Missiles Intercepted . | . . . Alert | -11 -10 -10 ------- Run | Jun Mat Sub Peak Influence 198 | 10 198 . Initial 6 | . 6 . Average 41 | 3 42 . Maximum Alert Level . | . . . Low Security (%) 100 | 100 100 . Level 1 . | . . . Level 2 . | . . . Level 3 . | . . . Level 4 . | . . . Level 5 . | . . . High Security . | . . . Max Security . | . . . Squads Dispatched 6 | . 6 . Investigation 4 | . 4 . Extermination . | . . . Reinforcement 2 | . 2 . Assault . | . . . Garrison . | . . . Intercept . | . . . Searches Triggered . | . . . Construction Impeded . | . . . Haulers Reinforced . | . . . Active Scanning Responses . | . . . Cargo Convoy Interrupts . | . . . Stealth | -11 -10 -10 --------- Run | Jun Mat Sub Distress Signals 5 | . 5 . Communications Jammed . | . . . Distress Signals . | . . . Times Spotted 38 | . 36 2 Peak Tracking Total 4 | . 4 2 Tactical Retreats . | . . . Traps | -11 -10 -10 ------- Run | Jun Mat Sub Traps Triggered 5 | . 5 . Indirectly . | . . . Trap Hack Attempts . | . . . Triggered . | . . . Disarmed . | . . . Reprogrammed . | . . . Reused . | . . . Traps Extracted . | . . . Installed . | . . . Triggered . | . . . Machines | -11 -10 -10 ---------- Run | Jun Mat Sub Machines Disabled . | . . . Max in Single Turn . | . . . Machines Repaired . | . . . Machines Sabotaged . | . . . Overloaded Fab Kills . | . . . Hacking | -11 -10 -10 --------- Run | Jun Mat Sub Machines Accessed 6 | . 6 . Terminals 5 | . 5 . Fabricators . | . . . Repair Stations . | . . . Recycling Units 1 | . 1 . Scanalyzers . | . . . Garrison Access . | . . . Total Hacks 17 | . 17 . Successful 3 | . 3 . Failed 14 | . 14 . Catastrophic 4 | . 4 . Database Lockouts . | . . . Manual 6 | . 6 . Terminals 14 | . 14 . Fabricators . | . . . Repair Stations . | . . . Recycling Units 3 | . 3 . Scanalyzers . | . . . Garrison Access . | . . . Terminal Hacks 3 | . 3 . Part Schematic 1 | . 1 . Prototype ID Bank 1 | . 1 . Unreport Threat 1 | . 1 . Fabricator Hacks . | . . . Repair Station Hacks . | . . . Recycling Unit Hacks . | . . . Scanalyzer . | . . . Garrison Access Hacks . | . . . Unauthorized Hacks . | . . . Terminals . | . . . Fabricators . | . . . Repair Stations . | . . . Recycling Units . | . . . Scanalyzers . | . . . Garrison Access . | . . . Data Cores Recovered . | . . . Used . | . . . Hacking Detections 6 | . 6 . Full Trace Events 1 | . 1 . Feedback Events 1 | . 1 . Corruption 1 | . 1 . Feedback Blocked . | . . . Robot Schematics Acquired . | . . . Robots Built . | . . . Authchips . | . . . Time . | . . . Total Robot Build Rating . | . . . Part Schematics Acquired 1 | . 1 . Parts Built . | . . . Authchips . | . . . Time . | . . . Total Part Build Rating . | . . . Parts Repaired . | . . . Time . | . . . Parts Recycled . | . . . Recycled Matter . | . . . Retrieved Matter . | . . . Retrieved Components . | . . . Parts Scanalyzed . | . . . Part Schematics Acquired . | . . . Parts Damaged . | . . . Bothacking | -11 -10 -10 ------------ Run | Jun Mat Sub Used RIF Installer . | . . . Robots Hacked . | . . . Non-combat . | . . . Combat . | . . . Robot Hacks Applied . | . . . Relay Couplers Released . | . . . Fabnet Peak Effective % . | . . . Robots Rewired . | . . . Allies Hacked . | . . . Hacks Repelled . | . . . Allies | -11 -10 -10 -------- Run | Jun Mat Sub Total Allies . | . . . Largest Group . | . . . Highest-Rated Group . | . . . Highest-Rated Ally . | . . . Total Orders . | . . . Ally Attacks . | . . . Total Damage . | . . . Kills . | . . . Allies Corrupted . | . . . Allies Melted . | . . . Intel | -11 -10 -10 ------- Run | Jun Mat Sub Robot Analysis Total . | . . . Derelict Logs Recovered . | . . . Drone Launches . | . . . Drone Recoveries . | . . . Exploration | -11 -10 -10 ------------- Run | Jun Mat Sub Turns Passed 3025 | 112 2882 31 Spaces Moved 879 | 84 788 7 Core 6 | 6 . . Treads 321 | 2 312 7 Legs . | . . . Wheels 552 | 76 476 . Hover . | . . . Flight . | . . . Fastest Speed 50 | 50 95 400 Average Speed 281 | 90 300 400 Slowest Speed 720 | 160 720 400 Overloaded Moves . | . . . Propulsion Burnouts . | . . . Robots Hopped . | . . . Cave-ins Triggered . | . . . Exploration Rate (%) 34 | 4 97 2 Regions Visited 2 Branch Regions 1 Pre-discovered Areas . | . . . Known Exits Taken . | . . . Unknown Exits Taken 2 | 1 1 . Scrap Searched . | . . . Spaces Dug . | . . . Terrain Destroyed . | . . . Melee . | . . . Projectile . | . . . AOE . | . . . Terrain Rammed . | . . . Walls Destroyed . | . . . Machines Disabled . | . . . Actions | -11 -10 -10 --------- Run | Jun Mat Sub Total 1215 | 109 1098 8 Wait 149 | 4 145 . Move 877 | 83 787 7 Hop . | . . . Pick Up 42 | 11 31 . Fast Attach 10 | 4 6 . Attach 7 | 3 4 . Detach . | . . . Swap 6 | . 6 . Drop 13 | . 13 . Fire 94 | 4 89 1 Melee . | . . . Ram 1 | . 1 . Kick . | . . . Crush 16 | . 16 . Escape Stasis . | . . . Rewire . | . . . Trap . | . . . Miscellaneous . | . . . Route ------- -11/Junkyard -10/Materials (discovered 6 exits: [*Mat x3] / [*Min x2] / [*Sub]) -10/Subcaves History --------- Turn | Location | Event 8 | -11/Junkyard | Discovered new exit (range 15) 113 | -11/Junkyard | Entered Materials 606 | -10/Materials | Build established: Hauler-Mutant 902 | -10/Materials | Discovered new exit (range 10) 1213 | -10/Materials | Discovered new exit (range 16) 1724 | -10/Materials | Discovered new exit (range 16) 2363 | -10/Materials | Discovered new exit (range 2) 2565 | -10/Materials | Discovered new exit (range 15) 2589 | -10/Materials | Discovered new exit (range 8) 2688 | -10/Materials | Core integrity fell below 50% 2754 | -10/Materials | Core integrity fell below 20% 2792 | -10/Materials | Lost 3 parts (1p1n1w) 2995 | -10/Materials | Entered Subcaves 3026 | -10/Subcaves | Destroyed by NM-O0F(R) with Subdweller Laser Last Messages --------------- 02768_ Crushed G-34 Mercenary. 02768_ G-34 Mercenary destroyed. 02769_ M/NN8V7%#KK%P,CUOZNGHTHL=FW= 02788_ Acquired Assault Rifle. 02788_ K-01 Serf collects debris. 02793_ Dropped Particle Gun. 02794_ Acquired Assault Rifle. 02795_ K-01 Serf collects debris. 02845_ System corrupted: Energy discharge (-28). 02849_ K-01 Serf collects debris. 02864_ System corrupted: FCS attempts to trigger Assault Rifle. 02864_ System corrupted: Assault Rifle misfires. 02914_ System corrupted: Matter fused (-5). LOCATION=UNKNOWN AMBIENT_HEAT=-10 GOAL=ESCAPE 02998_ ZX0JF7B>9Z=KWUFWMA5O LN9ZFBWXFRT 03024_ Lgt. Treads destroyed. Map ----- +----------------------------------------------------+ | ?????????????????????????????????????????????????? | | ?????????????????????????????????????????????????? | | ?????????????????????????????????????????????????? | | ?????????????????????????????????????????????????? | | ?????????????????????????????????????????????????? | | ?????????????????????????????????????????????????? | | ?????????????????????????????????????????????????? | | ?????????????????????????????????????????????????? | | ?????????????????????????????????????????????????? | | ?????????????????????????????????????????????????? | | ?????????????????????????????????????????????????? | | ?????????????????????????????????????????????????? | | ?????????????????????????????????????????????????? | | ?????????????????????????????????????????????????? | | ?????????????????????????????????????????????????? | | ?????????????????????????????????????????????????? | | ?????????????????????????????????????????????????? | | ?????????????????????????????????????????????????? | | ?????????????????????????????????????????????????? | | ?????????????????????????????????????????????????? | | ????????????????????###??????????????????????????? | | ???????????????##???# ##?????????????????????????? | | ??????# ??????## #??# #####?????????????????????? | | ???????# ### ### # # ##????????????????????? | | ???????# ##???????????????????? | | ??????# @ #???????????????????? | | ?????# ###### ##???????????????????? | | ????# ### ####?????# ??????????????????? | | ????????????## #?????????? ???????????????? | | ?????????????###???????????? ?????????????? | | ?????????????????????????????# ???????????? | | ?????????????????????????????? R R #???????????? | | ??????????????????????????????? #???????????? | | ???????????????????????????????? #???????????? | | ????????????????????????????????? ##???????????? | | ?????????????????????????????????? #????????????? | | ??????????????????????????????????? #????????????? | | ?????????????????????????????????????????????????? | | ?????????????????????????????????????????????????? | | ?????????????????????????????????????????????????? | | ?????????????????????????????????????????????????? | | ?????????????????????????????????????????????????? | | ?????????????????????????????????????????????????? | | ?????????????????????????????????????????????????? | | ?????????????????????????????????????????????????? | | ?????????????????????????????????????????????????? | | ?????????????????????????????????????????????????? | | ?????????????????????????????????????????????????? | | ?????????????????????????????????????????????????? | | ?????????????????????????????????????????????????? | +----------------------------------------------------+ Best States ------------- Heat Dissipation 25 Energy Generation 10 Energy Capacity 250 Matter Stores 300 Matter Capacity 300 Sight Range 16 Terrain Scan Range 16 Terrain Scan Density 10 Evasion (%) 44 Recoil Reduction 2 Item Schematics ----------------- Huge Storage Unit | -10/Materials | Hacked Robot Schematics ------------------ None Fabricated ------------ Nothing Alien Tech Used ----------------- None Achievements -------------- None Challenges ------------ None Game ------ Seed GravityColdFilter Manual? 0 Play Time 00:15:16 Cumulative 533.7 hours Start 2023.06.21 @ 22:46:14 End 2023.06.21 @ 23:03:51 Sessions 1 Manual Loads 0 Difficulty Rogue Special Mode None Game No. 375 Rogue 375 Adventurer 0 Explorer 0 Win Type - Total 17 Types 9/3/1/0/0/1/2/1/0 Lore% 77 Gallery% 89 Achievement% 79 Wizard Run 0 Options --------- ASCII 0 Keyboard 0 Movement Numpad Keybinds 0 Fullscreen 2 Font 24/Terminus Map View 76x50 Tactical HUD 1 Map Filters NONE Filters NONE Steam 1 RUN: 5555e202-1f39-4e1e-8295-b115242b4acb